[Event "DVM U12 2024"]
[Site "Heidelberg"]
[Date "2024.12.29"]
[Round "6"]
[White "Kovalskyy, Alicia"]
[Black "Sutharjan, Dakxwin"]
[Result "1/2-1/2"]
[ECO "B13"]
[WhiteElo "1758"]
[BlackElo "1917"]
[Annotator "NA RC"]
[PlyCount "90"]
[EventDate "2024.12.23"]
[EventType "team-tourn"]
[EventRounds "7"]
[EventCountry "GER"]
[SourceTitle "playchess.com"]
[Source "ChessBase"]
[SourceQuality "1"]
[TimeControl "40/5400+30:1800+30"]

1. e4 {[%emt 0:00:02]} c6 {[%emt 0:00:24]} 2. d4 {[%emt 0:00:03]} d5 {[%emt 0:00:09]} 3. exd5 {[%emt 0:00:27]} cxd5 {[%emt 0:00:14]} 4. Bd3 {[%emt 0:00:03]} Nf6 {[%emt 0:00:12]} 5. Nf3 {[%emt 0:00:19]} Qc7 {[%emt 0:01:30]} 6. c3 {[%emt 0:04:12]} Nc6 {[%emt 0:01:37]} 7. Na3 {[%emt 0:00:07]} a6 {[%emt 0:01:24]} 8. h3 {[%emt 0:00:35]} g6 {[%emt 0:00:47]} 9. Bg5 {[%emt 0:01:47]} Bg7 {[%emt 0:01:42]} 10. Nc2 {[%emt 0:01:47]} O-O {[%emt 0:01:34]} 11. Ne3 {[%emt 0:00:46]} Rd8 {[%emt 0:02:45]} 12. O-O {[%emt 0:02:44]} b5 {[%emt 0:10:13]} 13. Qd2 {[%emt 0:14:06]} e5 {[%emt 0:02:29]} 14. dxe5 {[%emt 0:00:37]} Nxe5 {[%emt 0:00:32]} 15. Nxe5 {[%emt 0:00:21]} Qxe5 {[%emt 0:00:14]} 16. f4 {[%emt 0:01:21]} Qd6 {[%emt 0:05:46]} 17. Nc2 {[%emt 0:08:25]} Bb7 {[%emt 0:06:11]} 18. Nd4 {[%emt 0:04:36]} Re8 {[%emt 0:02:42]} 19. Bxf6 {[%emt 0:07:49]} Bxf6 {[%emt 0:02:32]} 20. f5 {[%emt 0:01:08]} Rad8 {[%emt 0:05:05]} 21. Qf2 {[%emt 0:07:48]} Bxd4 {[%emt 0:04:25]} 22. cxd4 {[%emt 0:07:59]} Qf6 {[%emt 0:01:15]} 23. fxg6 {[%emt 0:03:32]} Qxf2+ {[%emt 0:00:10]} 24. Rxf2 {[%emt 0:00:05]} hxg6 {[%emt 0:00:52]} 25. Raf1 {[%emt 0:00:30]} Re7 {[%emt 0:01:36]} 26. Re2 {[%emt 0:01:14]} Rxe2 {[%emt 0:03:53]} 27. Bxe2 {[%emt 0:01:01]} Kf8 {[%emt 0:01:08]} 28. Rc1 {[%emt 0:01:26]} Rc8 {[%emt 0:07:05]} 29. Rxc8+ {[%emt 0:00:24]} Bxc8 {[%emt 0:00:01]} 30. Kf2 {[%emt 0:02:52]} Ke7 {[%emt 0:01:03]} 31. Ke3 {[%emt 0:00:23]} Bf5 {[%emt 0:02:04]} 32. Kd2 {[%emt 0:02:45]} Kd6 {[%emt 0:02:47]} 33. Bf3 {[%emt 0:06:12]} a5 {[%emt 0:03:09]} 34. Kc3 {[%emt 0:01:58]} g5 {[%emt 0:03:36]} 35. Bh5 {[%emt 0:02:10]} f6 {[%emt 0:01:15]} 36. Be8 {[%emt 0:00:31]} Bd7 {[%emt 0:00:34]} 37. Bh5 {[%emt 0:05:14]} f5 {[%emt 0:04:48]} 38. Be2 {[%emt 0:01:15]} Ke6 {[%emt 0:01:51]} 39. b4 {[%emt 0:01:46]} a4 {[%emt 0:00:39]} 40. a3 {[%emt 0:02:18]} f4 {[%emt 0:08:48]} 41. Bf3 {[%emt 0:32:39]} Kd6 {[%emt 0:30:43]} 42. Be2 {[%emt 0:00:51]} Ke7 {[%emt 0:03:56]} 43. Bf3 {[%emt 0:00:14]} Kd6 {[%emt 0:00:47]} 44. Be2 {[%emt 0:00:08]} Ke7 {[%emt 0:01:47]} 45. Bf3 {[%emt 0:00:08]} Kd6 {[%emt 0:02:52]} 1/2-1/2

[Event "DVM U12 2024"]
[Site "Heidelberg"]
[Date "2024.12.29"]
[Round "6"]
[White "Wingerath, Felix"]
[Black "Leonhardt, Max"]
[Result "1/2-1/2"]
[ECO "C10"]
[WhiteElo "1753"]
[BlackElo "1735"]
[Annotator "NA RC"]
[PlyCount "49"]
[EventDate "2024.12.23"]
[EventType "team-tourn"]
[EventRounds "7"]
[EventCountry "GER"]
[SourceTitle "playchess.com"]
[Source "ChessBase"]
[SourceQuality "1"]
[TimeControl "40/5400+30:1800+30"]

1. e4 {[%emt 0:00:03]} e6 {[%emt 0:00:04]} 2. d4 {[%emt 0:00:02]} d5 {[%emt 0:00:05]} 3. Nd2 {[%emt 0:00:11]} dxe4 {[%emt 0:00:11]} 4. Nxe4 {[%emt 0:00:01]} Nd7 {[%emt 0:00:08]} 5. Nf3 {[%emt 0:00:10]} Ngf6 {[%emt 0:00:05]} 6. Nxf6+ {[%emt 0:00:07]} Nxf6 {[%emt 0:00:07]} 7. Bd3 {[%emt 0:00:12]} Be7 {[%emt 0:01:15]} 8. O-O {[%emt 0:00:09]} O-O {[%emt 0:00:18]} 9. Ne5 {[%emt 0:00:18]} c5 {[%emt 0:01:08]} 10. dxc5 {[%emt 0:02:20]} Qd5 {[%emt 0:01:12]} 11. Re1 {[%emt 0:03:46]} Bxc5 {[%emt 0:00:45]} 12. Bc4 {[%emt 0:02:29]} Qd8 {[%emt 0:01:37]} 13. Bg5 {[%emt 0:02:09]} Qb6 {[%emt 0:02:40]} 14. Nd3 {[%emt 0:10:27]} Be7 {[%emt 0:00:05]} 15. b3 {[%emt 0:02:18]} Bd7 {[%emt 0:03:26]} 16. Ne5 {[%emt 0:04:23]} Bb5 {[%emt 0:02:19]} 17. Qf3 {[%emt 0:06:46]} Bxc4 {[%emt 0:02:02]} 18. Nxc4 {[%emt 0:00:29]} Qc7 {[%emt 0:00:25]} 19. a4 {[%emt 0:05:00]} Nd5 {[%emt 0:05:15]} 20. Bxe7 {[%emt 0:01:24]} Nxe7 {[%emt 0:00:17]} 21. Ne3 {[%emt 0:01:34]} Rfd8 {[%emt 0:00:48]} 22. Rad1 {[%emt 0:03:00]} h6 {[%emt 0:01:39]} 23. h3 {[%emt 0:00:18]} Nc6 {[%emt 0:02:26]} 24. Rxd8+ {[%emt 0:04:59]} Rxd8 {[%emt 0:00:08]} 25. Rd1 {[%emt 0:01:32]} 1/2-1/2

[Event "DVM U12 2024"]
[Site "Heidelberg"]
[Date "2024.12.29"]
[Round "6"]
[White "Grabowski, Joshua"]
[Black "Tuktamyshev, Timur"]
[Result "1-0"]
[ECO "C54"]
[WhiteElo "1745"]
[BlackElo "1531"]
[Annotator "NA RC"]
[PlyCount "121"]
[EventDate "2024.12.23"]
[EventType "team-tourn"]
[EventRounds "7"]
[EventCountry "GER"]
[SourceTitle "playchess.com"]
[Source "ChessBase"]
[SourceQuality "1"]
[TimeControl "40/5400+30:1800+30"]

1. e4 {[%emt 0:00:03]} e5 {[%emt 0:00:01]} 2. Nf3 {[%emt 0:00:08]} Nc6 {[%emt 0:00:02]} 3. Bc4 {[%emt 0:00:06]} Nf6 {[%emt 0:00:06]} 4. d3 {[%emt 0:00:09]} Bc5 {[%emt 0:00:51]} 5. c3 {[%emt 0:00:07]} d6 {[%emt 0:00:31]} 6. O-O {[%emt 0:00:46]} a6 {[%emt 0:00:34]} 7. b4 {[%emt 0:00:30]} Ba7 {[%emt 0:00:27]} 8. Nbd2 {[%emt 0:00:36]} O-O {[%emt 0:00:56]} 9. h3 {[%emt 0:00:22]} Ne7 {[%emt 0:00:55]} 10. Re1 {[%emt 0:02:04]} Ng6 {[%emt 0:01:57]} 11. Nf1 {[%emt 0:02:20]} h6 {[%emt 0:00:24]} 12. Ng3 {[%emt 0:01:26]} Be6 {[%emt 0:03:33]} 13. Bxe6 {[%emt 0:06:21]} fxe6 {[%emt 0:00:11]} 14. Be3 {[%emt 0:00:12]} Nf4 {[%emt 0:01:55]} 15. d4 {[%emt 0:02:38]} Ng6 {[%emt 0:09:28]} 16. dxe5 {[%emt 0:02:12]} Bxe3 {[%emt 0:01:51]} 17. Rxe3 {[%emt 0:00:59]} Nxe5 {[%emt 0:03:09]} 18. Nxe5 {[%emt 0:00:25]} dxe5 {[%emt 0:00:06]} 19. Qb3 {[%emt 0:04:02]} Qe7 {[%emt 0:05:02]} 20. Rd1 {[%emt 0:02:49]} Rad8 {[%emt 0:02:23]} 21. Red3 {[%emt 0:03:07]} Rxd3 {[%emt 0:00:32]} 22. Rxd3 {[%emt 0:00:08]} h5 {[%emt 0:00:53]} 23. Qc4 {[%emt 0:08:15]} Qf7 {[%emt 0:06:54]} 24. a4 {[%emt 0:06:55]} h4 {[%emt 0:06:27]} 25. Ne2 {[%emt 0:01:24]} Nh5 {[%emt 0:03:30]} 26. Rf3 {[%emt 0:03:37]} Nf4 {[%emt 0:01:07]} 27. Kf1 {[%emt 0:02:45]} Qd7 {[%emt 0:03:39]} 28. Qb3 {[%emt 0:10:27]} Kh7 {[%emt 0:04:26]} 29. g3 {[%emt 0:03:15]} hxg3 {[%emt 0:02:09]} 30. fxg3 {[%emt 0:00:33]} Ng6 {[%emt 0:01:12]} 31. Rxf8 {[%emt 0:00:21]} Nxf8 {[%emt 0:00:08]} 32. Qc2 {[%emt 0:01:49]} b5 {[%emt 0:06:38]} 33. a5 {[%emt 0:03:31]} c5 {[%emt 0:02:57]} 34. Ke1 {[%emt 0:01:30]} c4 {[%emt 0:01:25]} 35. Qd2 {[%emt 0:00:20]} Qxd2+ {[%emt 0:14:06]} 36. Kxd2 {[%emt 0:00:10]} Nd7 {[%emt 0:01:57]} 37. Ng1 {[%emt 0:00:36]} Nf6 {[%emt 0:01:04]} 38. Ke3 {[%emt 0:01:40]} g5 {[%emt 0:03:51]} 39. Nf3 {[%emt 0:10:55]} g4 {[%emt 0:01:22]} 40. Ng5+ {[%emt 0:00:39]} Kg6 {[%emt 0:00:35]} 41. h4 {[%emt 0:31:57]} Nh5 {[%emt 0:31:41]} 42. Nxe6 {[%emt 0:02:33]} Nxg3 {[%emt 0:00:47]} 43. Nc5 {[%emt 0:01:02]} Nh5 {[%emt 0:00:38]} 44. Nxa6 {[%emt 0:00:28]} g3 {[%emt 0:01:29]} 45. Kf3 {[%emt 0:00:26]} g2 {[%emt 0:00:27]} 46. Kxg2 {[%emt 0:00:08]} Nf4+ {[%emt 0:00:04]} 47. Kf3 {[%emt 0:00:18]} Ne6 {[%emt 0:00:09]} 48. Nc5 {[%emt 0:00:24]} Nc7 {[%emt 0:00:13]} 49. a6 {[%emt 0:02:33]} Kh5 {[%emt 0:02:00]} 50. a7 {[%emt 0:00:20]} Kxh4 {[%emt 0:00:05]} 51. Nd7 {[%emt 0:00:15]} Kg5 {[%emt 0:00:08]} 52. Nb6 {[%emt 0:00:28]} Kf6 {[%emt 0:00:10]} 53. Nd5+ {[%emt 0:00:23]} Nxd5 {[%emt 0:00:09]} 54. exd5 {[%emt 0:00:10]} Ke7 {[%emt 0:00:02]} 55. a8=Q {[%emt 0:00:19]} Kd6 {[%emt 0:00:02]} 56. Qc6+ {[%emt 0:01:06]} Ke7 {[%emt 0:00:08]} 57. Qe6+ {[%emt 0:00:08]} Kf8 {[%emt 0:00:06]} 58. Qd7 {[%emt 0:00:16]} Kg8 {[%emt 0:00:03]} 59. Qe7 {[%emt 0:00:12]} Kh8 {[%emt 0:00:05]} 60. Kg4 {[%emt 0:00:27]} Kg8 {[%emt 0:00:05]} 61. Kg5 {[%emt 0:00:14]} 1-0

[Event "DVM U12 2024"]
[Site "Heidelberg"]
[Date "2024.12.29"]
[Round "6"]
[White "Menke, Raphael Wilhelm"]
[Black "Engelhaupt, Henry"]
[Result "1-0"]
[ECO "C33"]
[WhiteElo "1742"]
[BlackElo "1905"]
[Annotator "NA RC"]
[PlyCount "49"]
[EventDate "2024.12.23"]
[EventType "team-tourn"]
[EventRounds "7"]
[EventCountry "GER"]
[SourceTitle "playchess.com"]
[Source "ChessBase"]
[SourceQuality "1"]
[TimeControl "40/5400+30:1800+30"]

1. e4 {[%emt 0:00:01]} e5 {[%emt 0:00:05]} 2. Nc3 {[%emt 0:00:04]} Nc6 {[%emt 0:00:07]} 3. Bc4 {[%emt 0:00:26]} Nf6 {[%emt 0:00:12]} 4. f4 {[%emt 0:00:14]} d6 {[%emt 0:02:46]} 5. Nf3 {[%emt 0:00:44]} exf4 {[%emt 0:01:48]} 6. d4 {[%emt 0:01:29]} Bg4 {[%emt 0:00:33]} 7. O-O {[%emt 0:00:41]} a6 {[%emt 0:00:50]} 8. a4 {[%emt 0:02:01]} Qd7 {[%emt 0:00:57]} 9. Bxf4 {[%emt 0:04:19]} O-O-O {[%emt 0:00:33]} 10. d5 {[%emt 0:04:22]} Bxf3 {[%emt 0:00:56]} 11. Rxf3 {[%emt 0:00:27]} Ne5 {[%emt 0:00:11]} 12. Bxe5 {[%emt 0:01:24]} dxe5 {[%emt 0:00:07]} 13. Rb1 {[%emt 0:00:30]} Bc5+ {[%emt 0:00:21]} 14. Kh1 {[%emt 0:00:24]} Ng4 {[%emt 0:00:28]} 15. Qe2 {[%emt 0:00:21]} h5 {[%emt 0:00:55]} 16. b4 {[%emt 0:00:35]} Ba7 {[%emt 0:02:32]} 17. a5 {[%emt 0:01:08]} b5 {[%emt 0:04:22]} 18. axb6 {[%emt 0:02:57]} Bxb6 {[%emt 0:00:24]} 19. Bxa6+ {[%emt 0:00:06]} Kb8 {[%emt 0:00:04]} 20. Bb5 {[%emt 0:00:16]} c6 {[%emt 0:01:39]} 21. Bxc6 {[%emt 0:04:09]} Qe7 {[%emt 0:00:08]} 22. Ra1 {[%emt 0:00:35]} Rc8 {[%emt 0:02:15]} 23. Qb5 {[%emt 0:05:32]} Kc7 {[%emt 0:02:39]} 24. d6+ {[%emt 0:00:50]} Qxd6 {[%emt 0:00:04]} 25. Rxf7+ {[%emt 0:00:13]} 1-0

[Event "DVM U12 2024"]
[Site "Heidelberg"]
[Date "2024.12.29"]
[Round "6"]
[White "Tu, Audrey"]
[Black "Rudolph, Simon"]
[Result "1/2-1/2"]
[ECO "C10"]
[WhiteElo "1734"]
[BlackElo "1614"]
[Annotator "NA RC"]
[PlyCount "74"]
[EventDate "2024.12.23"]
[EventType "team-tourn"]
[EventRounds "7"]
[EventCountry "GER"]
[SourceTitle "playchess.com"]
[Source "ChessBase"]
[SourceQuality "1"]
[TimeControl "40/5400+30:1800+30"]

1. e4 {[%emt 0:00:01]} e6 {[%emt 0:00:01]} 2. d4 {[%emt 0:00:08]} d5 {[%emt 0:00:01]} 3. Nc3 {[%emt 0:01:11]} dxe4 {[%emt 0:00:05]} 4. Nxe4 {[%emt 0:00:06]} Nd7 {[%emt 0:00:04]} 5. Nf3 {[%emt 0:00:55]} h6 {[%emt 0:00:07]} 6. Bd3 {[%emt 0:02:45]} Ngf6 {[%emt 0:00:32]} 7. Ng3 {[%emt 0:07:15]} c5 {[%emt 0:01:52]} 8. O-O {[%emt 0:07:21]} cxd4 {[%emt 0:01:50]} 9. Nxd4 {[%emt 0:01:35]} Be7 {[%emt 0:01:11]} 10. b3 {[%emt 0:05:40]} O-O {[%emt 0:01:03]} 11. c4 {[%emt 0:05:41]} Bc5 {[%emt 0:02:30]} 12. Bb2 {[%emt 0:02:00]} Ne5 {[%emt 0:02:55]} 13. Bc2 {[%emt 0:01:58]} Qe7 {[%emt 0:04:03]} 14. Qe2 {[%emt 0:04:30]} Ned7 {[%emt 0:02:02]} 15. Rad1 {[%emt 0:03:12]} Nb6 {[%emt 0:02:08]} 16. Ne4 {[%emt 0:03:55]} Nxe4 {[%emt 0:02:22]} 17. Qxe4 {[%emt 0:00:40]} f5 {[%emt 0:00:57]} 18. Qf3 {[%emt 0:06:11]} e5 {[%emt 0:04:49]} 19. Rfe1 {[%emt 0:04:36]} e4 {[%emt 0:00:24]} 20. Qf4 {[%emt 0:01:20]} Bd6 {[%emt 0:05:10]} 21. Nxf5 {[%emt 0:02:20]} Qf7 {[%emt 0:04:00]} 22. Qxd6 {[%emt 0:01:36]} Bxf5 {[%emt 0:00:48]} 23. Qg3 {[%emt 0:01:51]} Rfe8 {[%emt 0:02:57]} 24. h3 {[%emt 0:04:52]} Nd7 {[%emt 0:01:06]} 25. Rd5 {[%emt 0:03:15]} Re7 {[%emt 0:03:56]} 26. Qxg7+ {[%emt 0:02:59]} Qxg7 {[%emt 0:01:11]} 27. Bxg7 {[%emt 0:00:17]} Be6 {[%emt 0:00:18]} 28. Rxe4 {[%emt 0:02:49]} Kxg7 {[%emt 0:00:15]} 29. Rxe6 {[%emt 0:10:09]} Rxe6 {[%emt 0:00:50]} 30. Rxd7+ {[%emt 0:00:04]} Kg8 {[%emt 0:00:24]} 31. f3 {[%emt 0:03:09]} Re2 {[%emt 0:01:29]} 32. Be4 {[%emt 0:00:21]} Rxa2 {[%emt 0:00:15]} 33. Rxb7 {[%emt 0:00:23]} Rd8 {[%emt 0:00:38]} 34. Bd5+ {[%emt 0:00:47]} Kh8 {[%emt 0:00:31]} 35. b4 {[%emt 0:01:35]} a5 {[%emt 0:01:41]} 36. b5 {[%emt 0:04:38]} a4 {[%emt 0:00:49]} 37. b6 {[%emt 0:00:45]} Rb2 {[%emt 0:01:15]} 1/2-1/2

[Event "DVM U12 2024"]
[Site "Heidelberg"]
[Date "2024.12.29"]
[Round "6"]
[White "Vu, Khoi Nguyen"]
[Black "Hagn, Tobias"]
[Result "1-0"]
[ECO "C54"]
[WhiteElo "1730"]
[BlackElo "1670"]
[Annotator "NA RC"]
[PlyCount "57"]
[EventDate "2024.12.23"]
[EventType "team-tourn"]
[EventRounds "7"]
[EventCountry "GER"]
[SourceTitle "playchess.com"]
[Source "ChessBase"]
[SourceQuality "1"]
[TimeControl "40/5400+30:1800+30"]

1. e4 {[%emt 0:00:02]} e5 {[%emt 0:00:09]} 2. Nf3 {[%emt 0:00:04]} Nc6 {[%emt 0:00:07]} 3. Bc4 {[%emt 0:00:06]} Bc5 {[%emt 0:00:07]} 4. c3 {[%emt 0:00:07]} Nf6 {[%emt 0:00:17]} 5. d3 {[%emt 0:00:05]} d6 {[%emt 0:02:08]} 6. O-O {[%emt 0:00:57]} O-O {[%emt 0:01:11]} 7. Nbd2 {[%emt 0:00:20]} Ne7 {[%emt 0:04:22]} 8. h3 {[%emt 0:00:30]} Ng6 {[%emt 0:01:14]} 9. Re1 {[%emt 0:01:21]} Nf4 {[%emt 0:03:51]} 10. Nf1 {[%emt 0:01:00]} N6h5 {[%emt 0:01:52]} 11. Be3 {[%emt 0:06:37]} Bb6 {[%emt 0:03:23]} 12. Bxf4 {[%emt 0:14:46]} Nxf4 {[%emt 0:03:28]} 13. Ng3 {[%emt 0:00:24]} Qf6 {[%emt 0:04:58]} 14. d4 {[%emt 0:08:28]} exd4 {[%emt 0:21:16]} 15. cxd4 {[%emt 0:00:35]} Ba5 {[%emt 0:00:36]} 16. Re3 {[%emt 0:03:58]} Qh6 {[%emt 0:14:55]} 17. Ne2 {[%emt 0:06:45]} Nh5 {[%emt 0:07:34]} 18. e5 {[%emt 0:12:56]} Bb6 {[%emt 0:08:01]} 19. Qb3 {[%emt 0:05:54]} Be6 {[%emt 0:07:27]} 20. Bxe6 {[%emt 0:03:23]} Qxe6 {[%emt 0:00:08]} 21. g4 {[%emt 0:01:35]} Qg6 {[%emt 0:04:13]} 22. Kh2 {[%emt 0:00:45]} h6 {[%emt 0:05:23]} 23. gxh5 {[%emt 0:00:40]} Qxh5 {[%emt 0:00:16]} 24. Rg1 {[%emt 0:00:28]} Rae8 {[%emt 0:02:04]} 25. Nf4 {[%emt 0:01:04]} Qf5 {[%emt 0:01:31]} 26. Ng6 {[%emt 0:00:26]} dxe5 {[%emt 0:00:31]} 27. Nfh4 {[%emt 0:01:24]} Qxf2+ {[%emt 0:00:44]} 28. Rg2 {[%emt 0:00:36]} Qf1 {[%emt 0:00:58]} 29. Rf3 {[%emt 0:00:25]} 1-0

[Event "DVM U12 2024"]
[Site "Heidelberg"]
[Date "2024.12.29"]
[Round "6"]
[White "Sun, Christopher"]
[Black "Mao, Leo"]
[Result "1/2-1/2"]
[ECO "B22"]
[WhiteElo "1723"]
[BlackElo "1752"]
[Annotator "NA RC"]
[PlyCount "69"]
[EventDate "2024.12.23"]
[EventType "team-tourn"]
[EventRounds "7"]
[EventCountry "GER"]
[SourceTitle "playchess.com"]
[Source "ChessBase"]
[SourceQuality "1"]
[TimeControl "40/5400+30:1800+30"]

1. e4 {[%emt 0:00:01]} c5 {[%emt 0:00:15]} 2. c3 {[%emt 0:00:04]} d5 {[%emt 0:00:24]} 3. exd5 {[%emt 0:00:07]} Qxd5 {[%emt 0:00:04]} 4. d4 {[%emt 0:00:11]} Nf6 {[%emt 0:01:13]} 5. Nf3 {[%emt 0:00:07]} e6 {[%emt 0:01:08]} 6. Bd3 {[%emt 0:01:45]} Be7 {[%emt 0:01:49]} 7. Bf4 {[%emt 0:00:38]} O-O {[%emt 0:01:22]} 8. O-O {[%emt 0:00:20]} Nc6 {[%emt 0:04:00]} 9. Na3 {[%emt 0:06:32]} Qd8 {[%emt 0:08:43]} 10. Nc2 {[%emt 0:03:40]} b6 {[%emt 0:05:02]} 11. Re1 {[%emt 0:03:50]} Bb7 {[%emt 0:03:14]} 12. Ne3 {[%emt 0:01:47]} cxd4 {[%emt 0:05:46]} 13. cxd4 {[%emt 0:00:19]} Nb4 {[%emt 0:05:49]} 14. Be2 {[%emt 0:01:48]} Nbd5 {[%emt 0:07:42]} 15. Nxd5 {[%emt 0:00:41]} Nxd5 {[%emt 0:01:28]} 16. Bg3 {[%emt 0:00:18]} Bb4 {[%emt 0:03:47]} 17. Rf1 {[%emt 0:01:38]} Bd6 {[%emt 0:02:19]} 18. Rc1 {[%emt 0:02:08]} Bxg3 {[%emt 0:05:42]} 19. hxg3 {[%emt 0:00:07]} Qe8 {[%emt 0:03:22]} 20. Qd2 {[%emt 0:02:11]} Qa4 {[%emt 0:05:41]} 21. a3 {[%emt 0:02:06]} Rfc8 {[%emt 0:04:04]} 22. Rfd1 {[%emt 0:05:27]} Qe8 {[%emt 0:05:56]} 23. Bd3 {[%emt 0:02:33]} h6 {[%emt 0:02:10]} 24. Ne5 {[%emt 0:02:33]} Rxc1 {[%emt 0:01:54]} 25. Rxc1 {[%emt 0:00:22]} Rc8 {[%emt 0:01:18]} 26. Be4 {[%emt 0:00:54]} Rxc1+ {[%emt 0:06:46]} 27. Qxc1 {[%emt 0:00:12]} f6 {[%emt 0:07:05]} 28. Bg6 {[%emt 0:02:07]} Qc8 {[%emt 0:00:47]} 29. Qxc8+ {[%emt 0:03:24]} Bxc8 {[%emt 0:00:03]} 30. Nc6 {[%emt 0:00:47]} a5 {[%emt 0:00:36]} 31. Kf1 {[%emt 0:00:40]} Kf8 {[%emt 0:00:55]} 32. Ke2 {[%emt 0:00:58]} Bd7 {[%emt 0:01:06]} 33. Na7 {[%emt 0:02:46]} a4 {[%emt 0:02:26]} 34. Bd3 {[%emt 0:00:35]} Nc7 {[%emt 0:01:01]} 35. Kd2 {[%emt 0:01:20]} 1/2-1/2

[Event "DVM U12 2024"]
[Site "Heidelberg"]
[Date "2024.12.29"]
[Round "6"]
[White "Kesavan, Sarvesh"]
[Black "Liu, Zichen"]
[Result "1-0"]
[ECO "C54"]
[WhiteElo "1721"]
[BlackElo "1563"]
[Annotator "NA RC"]
[PlyCount "129"]
[EventDate "2024.12.23"]
[EventType "team-tourn"]
[EventRounds "7"]
[EventCountry "GER"]
[SourceTitle "playchess.com"]
[Source "ChessBase"]
[SourceQuality "1"]
[TimeControl "40/5400+30:1800+30"]

1. e4 {[%emt 0:00:18]} e5 {[%emt 0:00:23]} 2. Nf3 {[%emt 0:00:25]} Nc6 {[%emt 0:00:17]} 3. Bc4 {[%emt 0:00:13]} Bc5 {[%emt 0:00:46]} 4. c3 {[%emt 0:00:38]} Nf6 {[%emt 0:01:04]} 5. d3 {[%emt 0:00:18]} d6 {[%emt 0:00:43]} 6. Nbd2 {[%emt 0:04:51]} Be6 {[%emt 0:01:22]} 7. Bb3 {[%emt 0:00:49]} O-O {[%emt 0:01:02]} 8. O-O {[%emt 0:01:13]} Re8 {[%emt 0:01:53]} 9. h3 {[%emt 0:03:24]} h6 {[%emt 0:03:23]} 10. Re1 {[%emt 0:00:17]} d5 {[%emt 0:01:57]} 11. Ba4 {[%emt 0:13:07]} dxe4 {[%emt 0:03:10]} 12. Bxc6 {[%emt 0:06:09]} bxc6 {[%emt 0:01:04]} 13. Nxe5 {[%emt 0:12:32]} Bd5 {[%emt 0:07:22]} 14. d4 {[%emt 0:04:50]} Bd6 {[%emt 0:03:10]} 15. Nec4 {[%emt 0:02:30]} c5 {[%emt 0:05:54]} 16. Nxd6 {[%emt 0:04:08]} cxd6 {[%emt 0:02:31]} 17. dxc5 {[%emt 0:00:35]} dxc5 {[%emt 0:02:27]} 18. Nf1 {[%emt 0:00:13]} Qb6 {[%emt 0:06:12]} 19. Ne3 {[%emt 0:00:58]} Bb7 {[%emt 0:03:48]} 20. Nc4 {[%emt 0:06:06]} Qc7 {[%emt 0:04:38]} 21. Qc2 {[%emt 0:04:04]} Rad8 {[%emt 0:05:53]} 22. b3 {[%emt 0:05:14]} Ba6 {[%emt 0:04:39]} 23. Nb2 {[%emt 0:02:40]} c4 {[%emt 0:06:48]} 24. Be3 {[%emt 0:02:17]} Ra8 {[%emt 0:02:24]} 25. Bd4 {[%emt 0:04:21]} Qc6 {[%emt 0:03:23]} 26. Rad1 {[%emt 0:01:17]} cxb3 {[%emt 0:02:12]} 27. axb3 {[%emt 0:01:06]} Bb7 {[%emt 0:02:19]} 28. Nc4 {[%emt 0:04:00]} a5 {[%emt 0:04:17]} 29. Bxf6 {[%emt 0:06:07]} Qxf6 {[%emt 0:05:18]} 30. Nd6 {[%emt 0:01:19]} Re7 {[%emt 0:01:33]} 31. Nxb7 {[%emt 0:00:42]} Rxb7 {[%emt 0:00:00]} 32. Rxe4 {[%emt 0:00:23]} Rc7 {[%emt 0:01:21]} 33. Rde1 {[%emt 0:00:47]} g6 {[%emt 0:01:37]} 34. Re8+ {[%emt 0:00:23]} Rxe8 {[%emt 0:00:18]} 35. Rxe8+ {[%emt 0:00:01]} Kg7 {[%emt 0:00:22]} 36. Re3 {[%emt 0:00:21]} Re7 {[%emt 0:01:43]} 37. Rxe7 {[%emt 0:04:33]} Qxe7 {[%emt 0:00:09]} 38. c4 {[%emt 0:01:04]} Qe1+ {[%emt 0:01:03]} 39. Kh2 {[%emt 0:00:14]} Qe5+ {[%emt 0:00:02]} 40. g3 {[%emt 0:00:39]} Qc5 {[%emt 0:00:19]} 41. Qc3+ {[%emt 0:07:11]} Kh7 {[%emt 0:02:11]} 42. Qe3 {[%emt 0:00:15]} Qf5 {[%emt 0:02:03]} 43. Kg2 {[%emt 0:01:54]} Kg7 {[%emt 0:02:10]} 44. Qc3+ {[%emt 0:00:24]} Kh7 {[%emt 0:00:59]} 45. Qf3 {[%emt 0:03:02]} Qe6 {[%emt 0:01:32]} 46. Qd5 {[%emt 0:02:04]} Kg7 {[%emt 0:01:35]} 47. Qxe6 {[%emt 0:00:36]} fxe6 {[%emt 0:00:12]} 48. Kf3 {[%emt 0:00:08]} Kf6 {[%emt 0:00:05]} 49. Ke4 {[%emt 0:00:20]} g5 {[%emt 0:00:31]} 50. f4 {[%emt 0:03:22]} gxf4 {[%emt 0:00:28]} 51. Kxf4 {[%emt 0:00:06]} e5+ {[%emt 0:00:11]} 52. Ke4 {[%emt 0:00:27]} Ke6 {[%emt 0:00:04]} 53. g4 {[%emt 0:00:57]} Kf6 {[%emt 0:01:06]} 54. h4 {[%emt 0:00:31]} Ke6 {[%emt 0:00:30]} 55. g5 {[%emt 0:00:07]} h5 {[%emt 0:00:25]} 56. c5 {[%emt 0:00:10]} Kd7 {[%emt 0:00:18]} 57. Kxe5 {[%emt 0:00:06]} Kc6 {[%emt 0:00:08]} 58. g6 {[%emt 0:00:23]} Kxc5 {[%emt 0:00:06]} 59. g7 {[%emt 0:00:05]} Kb6 {[%emt 0:01:14]} 60. g8=Q {[%emt 0:00:21]} a4 {[%emt 0:00:04]} 61. bxa4 {[%emt 0:01:08]} Ka7 {[%emt 0:00:08]} 62. Qb3 {[%emt 0:00:19]} Ka6 {[%emt 0:00:08]} 63. Kd6 {[%emt 0:00:05]} Ka7 {[%emt 0:00:12]} 64. Kc6 {[%emt 0:00:09]} Ka8 {[%emt 0:00:06]} 65. Qb7# {[%emt 0:00:36]} 1-0

[Event "DVM U12 2024"]
[Site "Heidelberg"]
[Date "2024.12.29"]
[Round "6"]
[White "Mi Plaza, Luis Leo Manuel"]
[Black "Pflugbeil, Julian"]
[Result "0-1"]
[ECO "A16"]
[WhiteElo "1702"]
[BlackElo "1586"]
[Annotator "NA RC"]
[PlyCount "50"]
[EventDate "2024.12.23"]
[EventType "team-tourn"]
[EventRounds "7"]
[EventCountry "GER"]
[SourceTitle "playchess.com"]
[Source "ChessBase"]
[SourceQuality "1"]
[TimeControl "40/5400+30:1800+30"]

1. c4 {[%emt 0:00:10]} Nf6 {[%emt 0:00:03]} 2. Nc3 {[%emt 0:00:43]} g6 {[%emt 0:00:04]} 3. g3 {[%emt 0:00:50]} Bg7 {[%emt 0:00:04]} 4. Bg2 {[%emt 0:00:43]} O-O {[%emt 0:00:15]} 5. e3 {[%emt 0:00:44]} e6 {[%emt 0:00:09]} 6. Nge2 {[%emt 0:01:22]} d5 {[%emt 0:00:26]} 7. cxd5 {[%emt 0:01:45]} exd5 {[%emt 0:00:09]} 8. d4 {[%emt 0:01:25]} Re8 {[%emt 0:01:40]} 9. O-O {[%emt 0:04:22]} c6 {[%emt 0:00:30]} 10. Bd2 {[%emt 0:02:49]} Bf5 {[%emt 0:00:13]} 11. Qb3 {[%emt 0:06:32]} Qc7 {[%emt 0:00:49]} 12. Rac1 {[%emt 0:01:33]} Ne4 {[%emt 0:04:25]} 13. Nxd5 {[%emt 0:10:28]} Qd7 {[%emt 0:00:00]} 14. Bxe4 {[%emt 0:00:19]} Bxe4 {[%emt 0:00:00]} 15. Ndf4 {[%emt 0:00:36]} g5 {[%emt 0:00:37]} 16. Ng2 {[%emt 0:00:42]} Bf3 {[%emt 0:00:09]} 17. Nc3 {[%emt 0:01:36]} Qh3 {[%emt 0:00:37]} 18. Ne1 {[%emt 0:00:49]} g4 {[%emt 0:00:03]} 19. Qxb7 {[%emt 0:04:44]} Re6 {[%emt 0:00:33]} 20. e4 {[%emt 0:04:50]} Bh6 {[%emt 0:00:30]} 21. Be3 {[%emt 0:05:26]} c5 {[%emt 0:01:26]} 22. d5 {[%emt 0:02:15]} Re5 {[%emt 0:00:04]} 23. Bxh6 {[%emt 0:02:37]} Qxh2+ {[%emt 0:00:05]} 24. Kxh2 {[%emt 0:01:24]} Rh5+ {[%emt 0:00:02]} 25. Kg1 {[%emt 0:00:31]} Rh1# {[%emt 0:00:34]} 0-1